Cogmind - Beta 15 @@@ ROGUE MODE // 2025.08.20 @ 07:12:24 Player: shapeshifter Result: Self-destructed Performance ------------- Evolutions (5) 2500 Regions Visited (9) 1800 Robots Destroyed (46) 230 Value Destroyed (1826) 1826 Prototype IDs (3) 60 Alien Tech Used (0) 0 Bonus (653) 653 TOTAL SCORE: 7069 Bonus ------- Follower Combat Kills 171 Entered DSFs 500 Friendly Fire -18 Cogmind --------- Core Integrity 867/1000 Matter 293/300 Energy 315/315 System Corruption 1% Temperature Hot (229) Movement Treading (160) Location -5/Extension Parts ------- > --- POWER (1) -------- Neutrino Core > --- PROPULSION (5) --- Improved Treads Heavy Treads > --- UTILITY (8) ------ High-capacity Storage Unit Improved Sensor Array Improved Signal Interpreter Advanced Terrain Scanner > --- WEAPON (3) ------- Coil Gun > --- INVENTORY (20) --- Fission Core High-capacity Storage Unit Improved Sensor Array Improved Signal Interpreter Advanced Terrain Scanner ECM Suite Authchip [R/Combat] Authchip [R/Combat] Authchip [Propulsion] Authchip [Weapon] Authchip [Weapon] Advanced Variable Charge Gun Advanced Variable Charge Gun Long-range Proton Cannon Long-range Proton Cannon Long-range Proton Cannon Improved Datajack Improved Plasma Cutter Phasing Sabre Peak State ------------ > --- POWER ------------ Neutrino Core > --- PROPULSION ------- Armored Treads Heavy Treads Flexi-carbon Leg Flexi-carbon Leg > --- UTILITY ---------- Improved Cryofiber Web Improved Cooling System High-capacity Storage Unit Improved Sensor Array Improved Signal Interpreter Advanced Terrain Scanner Advanced Targeting Computer Improved Medium Armor Plating > --- WEAPON ----------- Advanced Variable Charge Gun Advanced Variable Charge Gun Enhanced Gauss Cannon > --- INVENTORY -------- Micro Fission Core Armored Huge Wheel High-capacity Storage Unit Improved Sensor Array Improved Signal Interpreter Advanced Terrain Scanner ECM Suite Authchip [R/Combat] Authchip [R/Combat] Authchip [Propulsion] Authchip [Weapon] Authchip [Weapon] Improved Arc Projector Advanced Variable Charge Gun Advanced Variable Charge Gun Coil Gun Improved Grenade Launcher Improved Datajack Improved Plasma Cutter [Rating: 89] Favorites ----------- Power Neutrino Core Engine Light Ion Engine Power Core Neutrino Core Reactor Fusion Reactor Propulsion Wheel Treads Improved Treads Leg Flexi-carbon Leg Wheel Wheel Utility Advanced Targeting Computer Device Improved Sensor Array Storage High-capacity Storage Unit Processor Advanced Targeting Computer Hackware System Shield Protection Improved Medium Armor Plating Weapon Advanced Variable Charge Gun Energy Gun Advanced Variable Charge Gun Energy Cannon Heavy Particle Cannon Ballistic Gun Assault Rifle Ballistic Cannon Flak Cannon Launcher Improved Grenade Launcher Build | -11 -10 -9 -9 -8 -7 -6 -6 -5 -5 ------- Run | Yrd Mat Mat Min Mat Fac Fac DSF Fac Ext Slots Evolved 10 | . . 2 . 2 2 2 . 2 . Power . | . . . . . . . . . . Propulsion 3 | . . . . . 2 . . 1 . Utility 6 | . . 2 . 2 . 1 . 1 . Weapon 1 | . . . . . . 1 . . . Parts Attached 73 | 7 2 7 1 13 3 3 13 9 15 Power 9 | 1 . 1 1 1 . . 1 2 2 Engine 3 | 1 . 1 1 . . . . . . Core 5 | . . . . 1 . . 1 1 2 Reactor 1 | . . . . . . . . 1 . Propulsion 20 | 2 2 1 . 3 . . 5 1 6 Treads 10 | 2 . 1 . 1 . . . 1 5 Leg 5 | . . . . . . . 5 . . Wheel 5 | . 2 . . 2 . . . . 1 Hover . | . . . . . . . . . . Flight . | . . . . . . . . . . Utility 23 | 2 . 2 . 6 2 2 3 2 4 Device 10 | 1 . 1 . 2 . . 2 2 2 Storage 3 | 1 . . . 1 1 . . . . Processor 3 | . . . . 2 1 . . . . Hackware 1 | . . . . . . 1 . . . Protection 6 | . . 1 . 1 . 1 1 . 2 Artifact . | . . . . . . . . . . Weapon 21 | 2 . 3 . 3 1 1 4 4 3 Energy Gun 7 | 1 . . . . 1 . 3 1 1 Energy Cannon 3 | . . 2 . 1 . . . . . Ballistic Gun 5 | 1 . 1 . 1 . . . 1 1 Ballistic Cannon 5 | . . . . 1 . 1 1 2 . Launcher 1 | . . . . . . . . . 1 Special Weapon . | . . . . . . . . . . Impact Weapon . | . . . . . . . . . . Slashing Weapon . | . . . . . . . . . . Piercing Weapon . | . . . . . . . . . . Special Melee Weapon . | . . . . . . . . . . Unidentified Prototypes 3 | . . . . . 1 . 1 1 . Parts Lost 29 | . . 1 . 3 . . 14 . 11 Power 1 | . . . . . . . 1 . . Propulsion 9 | . . 1 . . . . 5 . 3 Utility 12 | . . . . 2 . . 5 . 5 Weapon 7 | . . . . 1 . . 3 . 3 Highest Loss Streak 9 | . . 1 . 2 . . 7 . 9 To Critical Strikes 1 | . . . . 1 . . . . . Average Backups 13 | 3 7 7 8 8 15 14 17 18 19 Power . | . 1 . . . . . . 1 1 Propulsion 1 | 1 2 1 2 2 1 1 . . . Utility 6 | . 3 3 4 3 6 6 9 8 10 Weapon 4 | . 1 1 2 3 6 6 5 6 5 Tool/Special . | . . . . . . . . . . Unused Backups 32 | . 3 2 1 1 3 . 2 1 19 Power 2 | . . . . . . . . . 2 Propulsion 2 | . 2 . . . . . . . . Utility 18 | . 1 1 1 1 2 . 2 1 9 Weapon 8 | . . 1 . . 1 . . . 6 Tool/Special 2 | . . . . . . . . . 2 Average Slot Usage (%) 93 | . 99 93 100 96 99 99 79 87 89 Engine 4 | . 14 11 11 4 . . . . . Core 3 | . . . . 4 7 6 4 5 5 Treads 12 | . 13 13 22 17 14 13 3 4 14 Leg 4 | . . . . . . . 7 23 2 Wheel 6 | . 14 8 . . 15 13 6 . 2 Device 17 | . 14 19 22 21 15 17 9 16 22 Storage 8 | . 14 11 11 9 7 6 6 5 5 Processor 8 | . . . . 11 14 13 13 11 9 Protection 5 | . . 8 11 9 7 6 4 . 5 Energy Gun 6 | . 14 . . . 1 . 6 10 10 Energy Cannon 3 | . . 8 11 12 5 6 1 . . Ballistic Gun 4 | . 13 12 11 3 . . . 2 . Ballistic Cannon 3 | . . . . 2 7 13 8 2 4 Peak Build Rating 89 | 7 8 14 14 31 37 43 61 75 89 Average Rating 39 | 4 7 12 14 24 36 41 40 67 82 On Entrance 28 | . 7 8 14 14 28 37 43 61 74 Naked Turns . | . . . . . . . . . . Heaviest Build 92 | 13 13 21 23 48 67 75 79 79 92 Greatest Support 139 | 40 40 43 43 45 20 20 73 73 139 Greatest Overweight (x) 23 | . . 1 . 2 3 3 23 1 . Average Overweight (x) . | . . . . . 2 3 2 . . Largest Inventory Capacity 20 | 8 8 8 8 15 20 20 20 20 20 Average Capacity 14 | 7 8 8 8 11 17 20 20 20 20 Most Carried 20 | 7 8 8 8 15 17 16 20 20 20 Average Carried 13 | 3 7 7 8 8 15 14 17 19 19 Final Capacity 20 | 8 8 8 8 15 20 20 20 20 20 Final Carried 20 | 5 8 8 8 15 17 15 20 19 19 Class Distribution -------------------- 61% | Mutant 16% | Skirmisher 12% | Scavenger-Skirmisher 5% | Tank Dominant Class ---------------- Mutant | -10/Materials Mutant | -9/Materials Mutant | -9/Mines Mutant | -8/Materials Mutant | -7/Factory Skirmisher | -6/Factory Mutant | -6/DSF Scavenger-Skirmisher | -5/Factory Skirmisher | -5/Extension Resources | -11 -10 -9 -9 -8 -7 -6 -6 -5 -5 ----------- Run | Yrd Mat Mat Min Mat Fac Fac DSF Fac Ext Matter Collected 1508 | 303 60 46 164 251 . . 333 . 351 Remotely . | . . . . . . . . . . Salvage Created 1912 | 144 105 114 111 418 . . 336 42 642 Parts 83 | 7 6 6 11 23 . . 9 . 21 Haulers Intercepted . | . . . . . . . . . . Recyclers Shooed 1 | . . . . . . . . . 1 Parts Field Recycled . | . . . . . . . . . . Retrieved Matter . | . . . . . . . . . . Parts Self-Destructed . | . . . . . . . . . . Prevented . | . . . . . . . . . . Kills | -11 -10 -9 -9 -8 -7 -6 -6 -5 -5 ------- Run | Yrd Mat Mat Min Mat Fac Fac DSF Fac Ext Combat Hostiles Destroyed 38 | . 3 3 3 12 . . 6 1 10 Guns 25 | . 3 2 3 7 . . 2 . 8 Cannons 13 | . . 1 . 5 . . 4 1 2 Classes Destroyed 14 | 2 4 2 . 3 . . . 1 2 Worker 1 | . . . . . . . . . 1 Builder 1 | . 1 . . . . . . . . Tunneler 3 | 3 . . . . . . . . . Recycler 1 | 1 . . . . . . . . . Operator 1 | . 1 . . . . . . . . Watcher 1 | . 1 . . . . . . . . Swarmer 7 | . 3 . . 4 . . . . . Grunt 14 | . . 2 3 2 . . 3 . 4 Brawler 1 | . . . . . . . . . 1 Duelist 2 | . . 1 . 1 . . . . . Sentry 4 | . . . . . . . . 1 3 Specialist 4 | . . . . 2 . . 2 . . Hunter 5 | . . . . 2 . . 1 . 2 Heavy 1 | . . . . 1 . . . . . Best Kill Streak 4 | 3 3 3 3 4 . . 3 1 3 Combat Bots Only 4 | . 3 3 3 4 . . 3 1 3 Max Kills in Single Turn 2 | 1 1 1 1 2 . . 2 1 1 Gunslinging . | . . . . . . . . . . Exploded . | . . . . . . . . . . Melee . | . . . . . . . . . . Uniques/NPCs Destroyed . | . . . . . . . . . . Combat | -11 -10 -9 -9 -8 -7 -6 -6 -5 -5 -------- Run | Yrd Mat Mat Min Mat Fac Fac DSF Fac Ext Hostile Shots Fired 389 | . 22 24 9 70 . . 127 8 129 Missed 111 | . 8 2 4 23 . . 39 2 33 Hits 278 | . 14 22 5 47 . . 88 6 96 Melee 5 | . . 1 . 3 . . . . 1 Projectile 273 | . 14 21 5 44 . . 88 6 95 Critical Strikes 12 | . . . . 4 . . 1 . 7 Actively Blocked 1 | . . . . 1 . . . . . Damage Taken 5109 | . 111 257 62 844 . . 1603 140 2092 Core 504 | . 18 28 8 115 . . 202 . 133 Absorbed by Shields 56 | . . . . . . . 56 . . Redirected to Shielding 34 | . . 6 2 26 . . . . . Core Remaining (%) 89 | 100 92 . 91 79 100 . 76 . . Volleys Fired 165 | 11 16 23 4 38 3 . 21 7 42 Largest 3 | 2 2 2 2 2 1 . 3 1 2 Hottest 480 | 70 70 98 98 150 75 . 155 80 480 Shots Fired 280 | 22 32 35 8 57 3 . 48 7 68 Gun 187 | 22 32 19 4 20 1 . 26 2 61 Cannon 93 | . . 16 4 37 2 . 22 5 7 Launcher . | . . . . . . . . . . Special . | . . . . . . . . . . Kinetic 121 | 11 16 18 4 32 . . 22 5 13 Thermal 144 | 11 16 17 4 25 3 . 11 2 55 Explosive . | . . . . . . . . . . Electromagnetic 15 | . . . . . . . 15 . . Robot Hit Streak 16 | 7 2 7 10 16 . . 14 6 15 Robot Miss Streak 7 | 3 5 7 . 7 . . 5 . 3 Penetration Max 1 | . . . . 1 . . . . . Secondary Targets 3 | . 2 . . . . . . . 1 Max Gunslinging Chain 1 | . 1 . . . . . . . 1 Shots Hit Robots 189 | 15 15 13 8 44 . . 42 5 47 Core Hits 113 | 4 7 5 4 29 . . 39 2 23 Critical Kills 1 | . . . . 1 . . . . . Critical Parts Destroyed . | . . . . . . . . . . Critical Strikes 6 | 2 . . . 1 . . . . 3 Burn 2 | 2 . . . . . . . . . Destroy 2 | . . . . 1 . . . . 1 Blast 2 | . . . . . . . . . 2 Melee Attacks . | . . . . . . . . . . Impact . | . . . . . . . . . . Slashing . | . . . . . . . . . . Piercing . | . . . . . . . . . . Sneak Attacks . | . . . . . . . . . . Combat Hostiles . | . . . . . . . . . . Follow-up Attacks . | . . . . . . . . . . Damage Inflicted 4643 | 201 208 315 162 1002 . . 1006 184 1565 Guns 2629 | 201 208 115 62 310 . . 339 . 1394 Cannons 2014 | . . 200 100 692 . . 667 184 171 Explosions . | . . . . . . . . . . Melee . | . . . . . . . . . . Ramming . | . . . . . . . . . . Kinetic 2046 | 128 133 115 62 502 . . 667 184 255 Thermal 2449 | 73 75 200 100 500 . . 191 . 1310 Explosive . | . . . . . . . . . . Electromagnetic 148 | . . . . . . . 148 . . Impact . | . . . . . . . . . . Slashing . | . . . . . . . . . . Piercing . | . . . . . . . . . . Highest Corruption 1 | . . . . . . . . . 1 Average Corruption 1 | . . . . . . . . . 1 Corruption Purged . | . . . . . . . . . . Corruption Blocked . | . . . . . . . . . . Effects 5 | . . . . . . . . . 5 Message Errors 1 | . . . . . . . . . 1 Matter Fused 1 | . . . . . . . . . 1 Heat Flow Errors 2 | . . . . . . . . . 2 Data Loss (minor) 1 | . . . . . . . . . 1 Overload Shots 7 | . . . . . . . . . 7 Effects 1 | . . . . . . . . . 1 Heat Surge 1 | . . . . . . . . . 1 Overflow Damage 28 | . . . . 5 . . . . 23 Projectiles 28 | . . . . 5 . . . . 23 Explosions . | . . . . . . . . . . Melee . | . . . . . . . . . . Knockbacks 18 | . . . . . . . 15 . 3 Impact . | . . . . . . . . . . Kinetic 16 | . . . . . . . 14 . 2 Secondary 2 | . . . . . . . 1 . 1 Self-Inflicted Damage . | . . . . . . . . . . Shots . | . . . . . . . . . . Rammed . | . . . . . . . . . . Targets Rammed . | . . . . . . . . . . Kicked . | . . . . . . . . . . Crushed . | . . . . . . . . . . Highest Temperature 495 | 45 72 266 178 174 4 . 195 . 495 Average Temperature 87 | 17 25 107 89 68 2 . 77 . 233 Received Heat Transfer 1367 | . . 126 39 198 . . 333 27 644 Effects 3 | . . . . . . . . . 3 Interference 1 | . . . . . . . . . 1 Damage (major) 2 | . . . . . . . . . 2 Siege Activations . | . . . . . . . . . . Martial Activations . | . . . . . . . . . . Shielding Activations . | . . . . . . . . . . Robots Disrupted 2 | . . . . . . . 2 . . Combat Hostiles 2 | . . . . . . . 2 . . Robots Corrupted . | . . . . . . . . . . Combat Hostiles . | . . . . . . . . . . Parts Fried . | . . . . . . . . . . Impact Corruptions . | . . . . . . . . . . Robots Melted . | . . . . . . . . . . Combat Hostiles . | . . . . . . . . . . Parts Melted 6 | 1 1 . . 1 . . . . 3 Heat Transferred 3778 | 370 222 296 148 740 . . 407 . 1595 Parts Sabotaged . | . . . . . . . . . . Parts Stolen . | . . . . . . . . . . Parts Stripped . | . . . . . . . . . . Power Chain Reactions . | . . . . . . . . . . Alert | -11 -10 -9 -9 -8 -7 -6 -6 -5 -5 ------- Run | Yrd Mat Mat Min Mat Fac Fac DSF Fac Ext Maximum Alert Level . | . . . . . . . . . . Low Security (%) 100 | 100 100 100 100 100 100 100 100 100 100 Level 1 . | . . . . . . . . . . Level 2 . | . . . . . . . . . . Level 3 . | . . . . . . . . . . Level 4 . | . . . . . . . . . . Level 5 . | . . . . . . . . . . High Security . | . . . . . . . . . . Max Security . | . . . . . . . . . . Sterilizations 1 | . . . . . . . 1 . . Peak Influence 162 | 10 60 64 60 162 60 14 119 62 74 Initial 62 | . . . . 19 60 . 2 62 11 Average 24 | 1 10 20 15 67 9 3 50 12 24 Influence Increases 1249 | 20 87 127 70 319 15 22 214 34 341 Destroy 0b10 Robot/C 840 | . 60 60 60 240 . . 160 20 240 Destroy 0b10 Robot/NC 45 | 20 15 . . . . . 5 . 5 Destroy Leader 172 | . 12 10 10 60 . . 30 10 40 Allied During Kill 32 | . . . . . . . 4 . 28 Successful Hack 27 | . . 5 . . . 22 . . . Disable Machine 45 | . . 15 . 15 15 . . . . Destroy Structure 43 | . . 7 . 4 . . . 4 28 Lose Combat Pursuer 45 | . . 30 . . . . 15 . . Influence Decreases 1249 | 20 87 127 20 235 149 18 99 129 365 Entered New Map 177 | . . . . 31 74 . 2 57 13 Time Decay 780 | 20 87 117 20 177 75 18 . 72 194 Lost Part 144 | . . 10 . 27 . . 77 . 30 Lost Ally 148 | . . . . . . . 20 . 128 Squads Dispatched 9 | . . 1 . 3 1 . 2 2 . Investigation . | . . . . . . . . . . Extermination 2 | . . . . . 1 . . 1 . Reinforcement 6 | . . 1 . 3 . . 2 . . Assault . | . . . . . . . . . . Garrison 1 | . . . . . . . . 1 . Intercept . | . . . . . . . . . . Searches Triggered . | . . . . . . . . . . Construction Impeded . | . . . . . . . . . . Haulers Reinforced . | . . . . . . . . . . Active Scanning Responses . | . . . . . . . . . . Cargo Convoy Interrupts . | . . . . . . . . . . Stealth | -11 -10 -9 -9 -8 -7 -6 -6 -5 -5 --------- Run | Yrd Mat Mat Min Mat Fac Fac DSF Fac Ext Distress Signals 1 | . . 1 . . . . . . . Communications Jammed . | . . . . . . . . . . Distress Signals . | . . . . . . . . . . Times Spotted 68 | . 9 8 3 12 . . 19 1 16 Peak Tracking Total 12 | . 3 5 3 4 . . 12 1 6 Tactical Retreats 6 | . . 2 . . . . 4 . . Traps | -11 -10 -9 -9 -8 -7 -6 -6 -5 -5 ------- Run | Yrd Mat Mat Min Mat Fac Fac DSF Fac Ext Traps Triggered 5 | . 1 . . . . . 3 . 1 Indirectly . | . . . . . . . . . . Trap Hack Attempts . | . . . . . . . . . . Triggered . | . . . . . . . . . . Disarmed . | . . . . . . . . . . Reprogrammed . | . . . . . . . . . . Reused . | . . . . . . . . . . Traps Extracted . | . . . . . . . . . . Installed . | . . . . . . . . . . Triggered . | . . . . . . . . . . Machines | -11 -10 -9 -9 -8 -7 -6 -6 -5 -5 ---------- Run | Yrd Mat Mat Min Mat Fac Fac DSF Fac Ext Machines Disabled 3 | . . 1 . 1 1 . . . . Max in Single Turn 1 | . . 1 . 1 1 . . . . Machines Repaired . | . . . . . . . . . . Machines Dismantled . | . . . . . . . . . . Machines Sabotaged . | . . . . . . . . . . Overloaded Fab Kills . | . . . . . . . . . . Hacking | -11 -10 -9 -9 -8 -7 -6 -6 -5 -5 --------- Run | Yrd Mat Mat Min Mat Fac Fac DSF Fac Ext Machines Accessed 14 | . 1 4 . . . 3 . 2 4 Terminals 14 | . 1 4 . . . 3 . 2 4 Fabricators . | . . . . . . . . . . Repair Stations . | . . . . . . . . . . Recycling Units . | . . . . . . . . . . Scanalyzers . | . . . . . . . . . . Garrison Access . | . . . . . . . . . . Total Hacks 34 | . 5 7 . . . 10 . 6 6 Successful 9 | . 1 1 . . . 3 . 2 2 Failed 25 | . 4 6 . . . 7 . 4 4 Catastrophic 6 | . 1 1 . . . 2 . . 2 Database Lockouts . | . . . . . . . . . . Manual 24 | . 5 6 . . . 9 . 3 1 Terminals 34 | . 5 7 . . . 10 . 6 6 Fabricators . | . . . . . . . . . . Repair Stations . | . . . . . . . . . . Recycling Units . | . . . . . . . . . . Scanalyzers . | . . . . . . . . . . Garrison Access . | . . . . . . . . . . Terminal Hacks 5 | . 1 . . . . 1 . 1 2 Open Door 3 | . . . . . . . . 1 2 Open DSF 1 | . . . . . . 1 . . . Branch Access Points 1 | . 1 . . . . . . . . Fabricator Hacks . | . . . . . . . . . . Repair Station Hacks . | . . . . . . . . . . Recycling Unit Hacks . | . . . . . . . . . . Scanalyzer . | . . . . . . . . . . Garrison Access Hacks . | . . . . . . . . . . Unauthorized Hacks 4 | . . 1 . . . 2 . 1 . Terminals 4 | . . 1 . . . 2 . 1 . Botnet 4 | . . 1 . . . 2 . 1 . Fabricators . | . . . . . . . . . . Repair Stations . | . . . . . . . . . . Recycling Units . | . . . . . . . . . . Scanalyzers . | . . . . . . . . . . Garrison Access . | . . . . . . . . . . Data Cores Recovered 1 | . 1 . . . . . . . . Used . | . . . . . . . . . . Hacking Detections 12 | . 1 4 . . . 2 . 2 3 Full Trace Events . | . . . . . . . . . . Feedback Events . | . . . . . . . . . . Feedback Blocked . | . . . . . . . . . . Robot Schematics Acquired . | . . . . . . . . . . Robots Built . | . . . . . . . . . . Authchips . | . . . . . . . . . . Time . | . . . . . . . . . . Total Robot Build Rating . | . . . . . . . . . . Part Schematics Acquired . | . . . . . . . . . . Parts Built . | . . . . . . . . . . Authchips . | . . . . . . . . . . Time . | . . . . . . . . . . Total Part Build Rating . | . . . . . . . . . . Parts Repaired . | . . . . . . . . . . Time . | . . . . . . . . . . Parts Recycled . | . . . . . . . . . . Recycled Matter . | . . . . . . . . . . Retrieved Matter . | . . . . . . . . . . Retrieved Components . | . . . . . . . . . . Parts Scanalyzed . | . . . . . . . . . . Part Schematics Acquired . | . . . . . . . . . . Parts Damaged . | . . . . . . . . . . Bothacking | -11 -10 -9 -9 -8 -7 -6 -6 -5 -5 ------------ Run | Yrd Mat Mat Min Mat Fac Fac DSF Fac Ext Used RIF Installer . | . . . . . . . . . . Robots Hacked . | . . . . . . . . . . Non-combat . | . . . . . . . . . . Combat . | . . . . . . . . . . Robot Hacks Applied . | . . . . . . . . . . Relay Couplers Released . | . . . . . . . . . . Fabnet Peak Effective % . | . . . . . . . . . . Robots Rewired 8 | . . . . . . . 1 . 7 Allies Hacked . | . . . . . . . . . . Hacks Repelled . | . . . . . . . . . . Allies | -11 -10 -9 -9 -8 -7 -6 -6 -5 -5 -------- Run | Yrd Mat Mat Min Mat Fac Fac DSF Fac Ext Total Allies 11 | . . . . . . . 1 . 10 Largest Group 6 | . . . . . . . 1 . 6 Highest-Rated Group 185 | . . . . . . . 90 . 185 Highest-Rated Ally 90 | . . . . . . . 90 . 39 Initial Warlord ECA Mod 18 | . . . . . . . . 9 9 Total Orders . | . . . . . . . . . . Ally Attacks 37 | . . . . . . . 5 . 32 Total Damage 908 | . . . . . . . 230 . 678 Kills 4 | . . . . . . . 2 . 2 Allies Corrupted 1 | . . . . . . . . . 1 Allies Melted . | . . . . . . . . . . Intel | -11 -10 -9 -9 -8 -7 -6 -6 -5 -5 ------- Run | Yrd Mat Mat Min Mat Fac Fac DSF Fac Ext Active Infowar (turns) 3343 | 51 475 381 102 416 470 104 314 411 619 Sensors 1879 | . . . . 218 470 104 82 386 619 Terrain 546 | . . . . . . . . . 546 Seismic 1169 | 51 475 381 102 160 . . . . . ECM 1296 | . . 289 102 199 . 63 232 411 . Robot Analysis Total . | . . . . . . . . . . Derelict Logs Recovered 1 | . . . 1 . . . . . . Drone Launches . | . . . . . . . . . . Drone Recoveries . | . . . . . . . . . . Exploration | -11 -10 -9 -9 -8 -7 -6 -6 -5 -5 ------------- Run | Yrd Mat Mat Min Mat Fac Fac DSF Fac Ext Turns Passed 3437 | 133 475 381 102 416 470 104 326 411 619 Spaces Moved 1740 | 60 217 239 51 179 298 78 134 228 256 Core 14 | 13 . . . . . . 1 . . Treads 728 | 47 124 126 51 166 . . . . 214 Legs 312 | . . . . . . . 42 228 42 Wheels 686 | . 93 113 . 13 298 78 91 . . Hover . | . . . . . . . . . . Flight . | . . . . . . . . . . Fastest Speed 50 | 50 80 80 160 110 110 125 110 120 120 Average Speed 133 | 136 125 122 160 155 117 125 140 123 156 Slowest Speed 1200 | 160 160 160 160 160 125 125 1200 190 165 Overloaded Moves . | . . . . . . . . . . Propulsion Burnouts . | . . . . . . . . . . Robots Hopped . | . . . . . . . . . . Potential Cave-ins . | . . . . . . . . . . Cave-ins Triggered . | . . . . . . . . . . Exploration Rate (%) 22 | 5 30 19 11 19 6 3 92 8 36 Regions Visited 9 Branch Regions 2 Pre-discovered Areas . | . . . . . . . . . . Known Exits Taken 4 | . . . 1 . 1 1 . 1 . Unknown Exits Taken 4 | 1 1 1 . 1 . . . . . Scrap Searched . | . . . . . . . . . . Spaces Dug 1 | . . . . . . . . 1 . Terrain Destroyed 27 | . . 7 . 5 . . . 2 13 Melee . | . . . . . . . . . . Projectile 27 | . . 7 . 5 . . . 2 13 AOE . | . . . . . . . . . . Terrain Rammed . | . . . . . . . . . . Walls Destroyed . | . . . . . . . . . . Machines Disabled . | . . . . . . . . . . Actions | -11 -10 -9 -9 -8 -7 -6 -6 -5 -5 --------- Run | Yrd Mat Mat Min Mat Fac Fac DSF Fac Ext Total 2593 | 89 387 298 65 260 417 84 229 353 411 Wait 380 | . 142 9 7 9 92 . 17 88 16 Move 1732 | 59 216 238 50 178 297 78 133 227 256 Hop . | . . . . . . . . . . Pick Up 97 | 12 6 10 1 15 11 1 20 8 13 Fast Attach 8 | . 2 1 . 1 . . 1 . 3 Attach 47 | 7 . 5 . 4 2 2 13 8 6 Detach 3 | . . . . . . . . 3 . Swap 32 | . 2 3 1 9 4 2 . 4 7 Drop 54 | . 3 9 2 6 8 1 3 8 14 Fire 165 | 11 16 23 4 38 3 . 21 7 42 Melee . | . . . . . . . . . . Ram . | . . . . . . . . . . Kick . | . . . . . . . . . . Crush . | . . . . . . . . . . Escape Stasis 8 | . . . . . . . 8 . . Rewire 67 | . . . . . . . 13 . 54 Trap . | . . . . . . . . . . Miscellaneous . | . . . . . . . . . . Route ------- -11/Scrapyard -10/Materials (discovered 3 exits: *Mat / Min x2) -9/Materials -9/Mines (discovered 2 exits: *Mat x2) -8/Materials -7/Factory -6/Factory -6/DSF -5/Factory (discovered 2 exits: *Fac / *Ext) -5/Extension History --------- Turn | Location | Event 44 | -11/Scrapyard | Discovered new exit (range 14) 134 | -11/Scrapyard | Entered Materials 312 | -10/Materials | Build established: Mutant 377 | -10/Materials | Identified exit to Mines 605 | -10/Materials | Discovered new exit (range 4) 609 | -10/Materials | Entered another Materials area 609 | -9/Materials | Evolved 2 slots: Utility x2 920 | -9/Materials | Discovered new exit (range 16) 990 | -9/Materials | Entered Mines 1040 | -9/Mines | Identified exit to Materials 1060 | -9/Mines | Discovered exit to Materials (range 7) 1092 | -9/Mines | Entered Materials 1092 | -8/Materials | Evolved 2 slots: Utility x2 1452 | -8/Materials | Discovered new exit (range 4) 1508 | -8/Materials | Entered Factory 1508 | -7/Factory | Evolved 2 slots: Propulsion x2 1914 | -7/Factory | Discovered new exit (range 9) 1940 | -7/Factory | Identified exit to Factory 1978 | -7/Factory | Entered another Factory area 1978 | -6/Factory | Evolved 2 slots: Utility x1, Weapon x1 2082 | -6/Factory | Identified exit to DSF 2082 | -6/Factory | Entered DSF 2107 | -6/DSF | Additional patrols routed to DSF 2146 | -6/DSF | Wild Derelicts raided the area 2195 | -6/DSF | Lost 7 parts (1p2n3u1w) 2296 | -6/DSF | Sterilization system engaged 2316 | -6/DSF | Ambient heat levels rising (+10) 2331 | -6/DSF | Ambient heat levels rising (+10) 2335 | -6/DSF | Lost 6 parts (2n2u2w) 2346 | -6/DSF | Ambient heat levels rising (+10) 2361 | -6/DSF | Ambient heat levels rising (+10) 2376 | -6/DSF | Ambient heat levels rising (+10) 2391 | -6/DSF | Ambient heat levels rising (+10) 2396 | -6/DSF | Discovered new exit (range 6) 2406 | -6/DSF | Ambient heat levels rising (+10) 2406 | -6/DSF | Identified exit to Factory 2408 | -6/DSF | Entered Factory 2408 | -5/Factory | Evolved 2 slots: Propulsion x1, Utility x1 2705 | -5/Factory | Discovered new exit (range 3) 2707 | -5/Factory | Identified exit to Factory 2767 | -5/Factory | Build established: Scavenger-Skirmisher 2790 | -5/Factory | Garrison activated, responded to threat 2815 | -5/Factory | Discovered new exit (range 6) 2818 | -5/Factory | Identified exit to Extension 2819 | -5/Factory | Entered Extension 3094 | -5/Extension | Rescued a captive Derelict 3095 | -5/Extension | Rescued a captive Derelict 3126 | -5/Extension | Rescued a captive Derelict 3175 | -5/Extension | Build established: Skirmisher 3232 | -5/Extension | Lost 6 allies 3347 | -5/Extension | Lost 4 allies 3398 | -5/Extension | Spotted B-75 Beast 3438 | -5/Extension | Self-destructed Last Messages --------------- 03416_ K-01 Serf destroyed. 03417_ System interference averted by Imp. Cryofiber Web. 03417_ Overheating: System interference. 03417_ Imp. Signal Interpreter temporarily disabled. 03418_ Acquired 5 matter. 03419_ Acquired 7 matter. 03420_ Imp. Treads destroyed. 03423_ Imp. Cryofiber Web destroyed. 03426_ Imp. Treads destroyed. 03427_ Acquired 3 matter. 03429_ Imp. Grenade Launcher destroyed. 03429_ Imp. Medium Armor Plating destroyed. 03432_ B-75 Beast suffers critical hit (Destroy). 03433_ Critical hit (Meltdown: +320). 03433_ Machine disabled. 03434_ Slug penetrates B-75 Beast. 03437_ Adv. Variable Charge Gun destroyed. Map ----- +----------------------------------------------------+ | #??################??####??#???##??#?????????????? | | ?#?# % =% #?#??#????#???#???????????? | | ???# [ #+#########?# #???????????????? ????????? | | #### %# %[! #?#?## ####??#????#??????????????? | | # % +% % ##?#?# #?#???????????????????????? | | # %]=##%%%[ #????# #?????????#???????????????? | | # = ## ###### ####??????????????????????? | | =## +%! #??#??#????????????????? | | ## = #%= % #????##??#????? ???????? | | #####+###*= % ##?????????#???????????? | | % % [%% #?????????????#????????? | | #######+##+########+##### #???????#? ????????????? | | ???## #?# = #?# #??????#???????????????? | | ????# #?#* " #?# ###?#??????????????????? | | ????# ###! ]""#?# #?????#??? ????????????? | | ?#??# ###** T"#?# #?#??????#?##??????????? | | ????############# %[""#?# #????#???????#?????????? | | ?#??#?##????#???#![^""#?#w#??#???????????????????? | | #???#?#??#?#????# ! #?#u#????????? ????????????? | | ???##?#?#?????#### ####?# #????#??#??????#???????? | | ????#???????##??#####???# #??????????????#??#????? | | ??#??#??##?##???????##??# #??????????????????????? | | ?????????#???#??????????# #??????????????????????? | | #??#????##??#????#???#??#u#??????????????????????? | | ??????????#?????????????#%#?#????????????????????? | | ?#????????###???????????#@#????????? ????????????? | | ???????????#??#?????????# ##?#?????????????#?????? | | ??????????????????#???#?# #??????#???????????????? | | ?#?#???????##?????????#"%u""?????????????????????? | | ???#?????#????????????# % ???????????????????? | | ???????#??????????????# ?????????????????? | | ???????????????#??????# ???????????????? | | ????????????#?????????# ??? ??????????? | | ????????????????? ???? ???????????????? | | ?????????????????????? ??????????????? | | ????????????????????? ?????????????? | | ????????????????????? ? ??????????????? | | ???????????????????? BB%! ?? ? ???? ????????? | | ???????????#????????### BB ??? ??????????????? | | ??????????????????????# ???????????????????? | | ??????????????????????# ????????? ??????????? | | ???????????????#??????# ????????????????????? | | ????????????????????#?? ?????????????????????? | | ?????????????????????????????????????????????????? | | ?????????????????????????????????????????????????? | | ?????????????????????????????????????????????????? | | | | | | | | | +----------------------------------------------------+ Best States ------------- Heat Dissipation 67 Energy Generation 19 Energy Capacity 315 Matter Stores 300 Matter Capacity 300 Sight Range 16 Robot Scan Range 15 Terrain Scan Range 20 Terrain Scan Density 10 ECM Strength 1 Base Temperature (-) 150 Armor Coverage 450 Core Shielding 20 Evasion (%) 55 Targeting Accuracy 8 Recoil Reduction 5 Defensive Hacking 10 Authchip Count 7 Item Schematics ----------------- None Robot Schematics ------------------ None Fabricated ------------ Nothing Repaired ---------- Nothing Alien Tech Used ----------------- None Achievements -------------- None Challenges ------------ None Game ------ Seed PhysicsIonBlade Manual? 0 Play Time 00:43:33 Cumulative 171.7 hours Start 2025.08.20 @ 05:25:06 End 2025.08.20 @ 07:12:24 Sessions 3 Manual Loads 0 Difficulty Rogue Special Mode None Game No. 274 Rogue 274 Adventurer 0 Explorer 0 Win Type - Total 3 Types 2/0/1/0/0/0/0/0/0/0 Lore% 78 Gallery% 73 Achievement% 54 Wizard Run 0 Options --------- Layout 1 ASCII 0 Keyboard 0 Movement Mouse Keybinds 0 Fullscreen 1 Font 24/Smallcaps Map View 50x35 Zoom Use 0% Tactical HUD 1 Map Filters NONE Filters NONE Steam 1 RUN: 6eed4e91-0693-4643-8758-f4ac216995e3